[Event "*** Titled Tuesday Blitz"]
[Site "Chess.com"]
[Date "2020.11.24"]
[Round "5"]
[White "mapleaff"]
[Black "barbara25"]
[Result "0-1"]
[WhiteElo "2392"]
[BlackElo "2261"]
[TimeControl "180+1"]
[EndTime "11:12:12 PST"]
[Termination "barbara25 won by resignation"]

1. d4 {[%clk 0:03:00.9]} 1... Nf6 {[%clk 0:02:58.4]} 2. Nf3 {[%clk 0:03:01.8]}
2... e6 {[%clk 0:02:56.6]} 3. c4 {[%clk 0:03:02.2]} 3... d5 {[%clk 0:02:57.5]}
4. Nc3 {[%clk 0:03:02.1]} 4... c6 {[%clk 0:02:57.4]} 5. Bg5 {[%clk 0:03:01.9]}
5... Be7 {[%clk 0:02:57.3]} 6. g3 {[%clk 0:03:00.8]} 6... O-O {[%clk 0:02:57.2]}
7. Bg2 {[%clk 0:03:01]} 7... Nbd7 {[%clk 0:02:57.3]} 8. O-O {[%clk 0:03:01.4]}
8... b6 {[%clk 0:02:56.6]} 9. Rc1 {[%clk 0:02:59.9]} 9... Bb7 {[%clk 0:02:56.6]}
10. cxd5 {[%clk 0:02:59.8]} 10... exd5 {[%clk 0:02:55.2]} 11. Bf4 {[%clk
0:02:44.6]} 11... Ne4 {[%clk 0:02:53]} 12. Nd2 {[%clk 0:02:26.8]} 12... f5
{[%clk 0:02:51.6]} 13. Ndxe4 {[%clk 0:02:22.1]} 13... fxe4 {[%clk 0:02:51]} 14.
Qd2 {[%clk 0:02:20.3]} 14... Nf6 {[%clk 0:02:50.3]} 15. a3 {[%clk 0:02:10.8]}
15... Nh5 {[%clk 0:02:49.2]} 16. Be3 {[%clk 0:02:08.8]} 16... Nf6 {[%clk
0:02:49]} 17. f3 {[%clk 0:02:07.4]} 17... exf3 {[%clk 0:02:48.5]} 18. Bxf3
{[%clk 0:02:06]} 18... Bd6 {[%clk 0:02:47.2]} 19. Bg5 {[%clk 0:02:02.9]} 19...
Be7 {[%clk 0:02:46]} 20. Bg2 {[%clk 0:01:57.8]} 20... Ne4 {[%clk 0:02:35.5]} 21.
Nxe4 {[%clk 0:01:50.4]} 21... dxe4 {[%clk 0:02:34.7]} 22. Bxe7 {[%clk
0:01:27.1]} 22... Qxe7 {[%clk 0:02:34.6]} 23. e3 {[%clk 0:01:26.5]} 23... c5
{[%clk 0:02:32.9]} 24. dxc5 {[%clk 0:01:23.5]} 24... bxc5 {[%clk 0:02:33]} 25.
Qc3 {[%clk 0:01:13.6]} 25... Rxf1+ {[%clk 0:02:30.9]} 26. Rxf1 {[%clk
0:01:12.9]} 26... Rd8 {[%clk 0:02:28.9]} 27. Rc1 {[%clk 0:01:09.5]} 27... Rd5
{[%clk 0:02:13.7]} 28. Qc4 {[%clk 0:01:02.3]} 28... Kh8 {[%clk 0:02:08.1]} 29.
Bxe4 {[%clk 0:00:51.2]} 29... Re5 {[%clk 0:02:05.4]} 30. Bxb7 {[%clk 0:00:48.3]}
30... Qxb7 {[%clk 0:02:05.2]} 31. Qf4 {[%clk 0:00:47.6]} 31... Re8 {[%clk
0:02:03.7]} 32. Rf1 {[%clk 0:00:46.4]} 32... h6 {[%clk 0:02:02.5]} 33. Rf2
{[%clk 0:00:44.2]} 33... Qe7 {[%clk 0:01:58.6]} 34. Re2 {[%clk 0:00:40.3]} 34...
Qe6 {[%clk 0:01:58.6]} 35. e4 {[%clk 0:00:34.6]} 35... c4 {[%clk 0:01:58.1]} 36.
Kg2 {[%clk 0:00:32.1]} 36... Rc8 {[%clk 0:01:54.7]} 37. Qf5 {[%clk 0:00:30.1]}
37... Qe8 {[%clk 0:01:53.5]} 38. e5 {[%clk 0:00:29.6]} 38... c3 {[%clk
0:01:53.6]} 39. bxc3 {[%clk 0:00:30.5]} 39... Rxc3 {[%clk 0:01:53.5]} 40. e6
{[%clk 0:00:30.1]} 40... Kg8 {[%clk 0:01:52.2]} 41. a4 {[%clk 0:00:27.7]} 41...
Rc7 {[%clk 0:01:42.1]} 42. Qd5 {[%clk 0:00:25.7]} 42... Re7 {[%clk 0:01:41.9]}
43. a5 {[%clk 0:00:25.8]} 43... Kh7 {[%clk 0:01:39.1]} 44. Qf5+ {[%clk 0:00:25]}
44... g6 {[%clk 0:01:38.1]} 45. Qf6 {[%clk 0:00:25.1]} 45... Qa8+ {[%clk
0:01:35.7]} 46. Qf3 {[%clk 0:00:24.2]} 46... Qe8 {[%clk 0:01:35.2]} 47. Qe4
{[%clk 0:00:22.9]} 47... Qd8 {[%clk 0:01:34.1]} 48. h4 {[%clk 0:00:22.5]} 48...
Qxa5 {[%clk 0:01:33]} 49. Rf2 {[%clk 0:00:20.8]} 49... h5 {[%clk 0:01:21.4]} 50.
Rf6 {[%clk 0:00:17.7]} 50... Qd2+ {[%clk 0:01:18.9]} 51. Kh3 {[%clk 0:00:17.1]}
51... Qh6 {[%clk 0:01:16.4]} 52. Rf7+ {[%clk 0:00:17.1]} 52... Rxf7 {[%clk
0:01:15.7]} 53. exf7 {[%clk 0:00:18]} 53... Qf8 {[%clk 0:01:15.6]} 54. g4 {[%clk
0:00:09]} 54... hxg4+ {[%clk 0:01:13.3]} 55. Kxg4 {[%clk 0:00:08.3]} 55... Kg7
{[%clk 0:01:12.6]} 56. Qe5+ {[%clk 0:00:06.4]} 56... Kxf7 {[%clk 0:01:12.5]} 57.
Qd5+ {[%clk 0:00:06.9]} 57... Kg7 {[%clk 0:01:12.5]} 58. Qe5+ {[%clk 0:00:06.8]}
58... Qf6 {[%clk 0:01:12.6]} 59. Qc7+ {[%clk 0:00:07]} 59... Qf7 {[%clk
0:01:12.6]} 60. Qe5+ {[%clk 0:00:07.3]} 60... Kh7 {[%clk 0:01:12.6]} 61. Kg3
{[%clk 0:00:04.5]} 61... a6 {[%clk 0:01:10.9]} 62. h5 {[%clk 0:00:03.9]} 62...
gxh5 {[%clk 0:01:10.5]} 63. Qe4+ {[%clk 0:00:02.9]} 63... Qg6+ {[%clk
0:01:10.6]} 0-1

[Event "*** Titled Tuesday Blitz"]
[Site "Chess.com"]
[Date "2020.11.24"]
[Round "5"]
[White "vova-79"]
[Black "beto-betun"]
[Result "1-0"]
[WhiteElo "2479"]
[BlackElo "2188"]
[TimeControl "180+1"]
[EndTime "11:12:12 PST"]
[Termination "vova-79 won on time"]

1. d4 {[%clk 0:03:00.9]} 1... Nf6 {[%clk 0:02:57.7]} 2. c4 {[%clk 0:03:00.3]}
2... g6 {[%clk 0:02:57]} 3. Nc3 {[%clk 0:02:59.9]} 3... Bg7 {[%clk 0:02:57.5]}
4. Nf3 {[%clk 0:02:59.8]} 4... O-O {[%clk 0:02:57]} 5. g3 {[%clk 0:03:00.1]}
5... d6 {[%clk 0:02:56.3]} 6. Bg2 {[%clk 0:03:00.2]} 6... c5 {[%clk 0:02:52.8]}
7. dxc5 {[%clk 0:02:58.3]} 7... dxc5 {[%clk 0:02:52.5]} 8. Qxd8 {[%clk 0:02:58]}
8... Rxd8 {[%clk 0:02:53.4]} 9. Be3 {[%clk 0:02:57.7]} 9... Nc6 {[%clk
0:01:48.4]} 10. Bxc5 {[%clk 0:02:54.9]} 10... Be6 {[%clk 0:01:48.8]} 11. Nd2
{[%clk 0:02:38.1]} 11... Nd7 {[%clk 0:01:45.7]} 12. Ba3 {[%clk 0:02:20.6]} 12...
Nb6 {[%clk 0:01:38.9]} 13. O-O-O {[%clk 0:01:52.9]} 13... Rd7 {[%clk 0:01:30.6]}
14. c5 {[%clk 0:01:24.9]} 14... Bxc3 {[%clk 0:01:13.6]} 15. cxb6 {[%clk
0:01:21.8]} 15... Bxd2+ {[%clk 0:01:09.7]} 16. Rxd2 {[%clk 0:01:20.4]} 16...
Rxd2 {[%clk 0:01:04]} 17. Kxd2 {[%clk 0:01:21.3]} 17... axb6 {[%clk 0:01:02.9]}
18. Ra1 {[%clk 0:00:54.4]} 18... Bf5 {[%clk 0:00:53.6]} 19. Bxc6 {[%clk
0:00:35.9]} 19... bxc6 {[%clk 0:00:54.5]} 20. Bxe7 {[%clk 0:00:34.6]} 20... Kg7
{[%clk 0:00:55]} 21. a3 {[%clk 0:00:31.7]} 21... f6 {[%clk 0:00:51.6]} 22. Bb4
{[%clk 0:00:30.1]} 22... Kf7 {[%clk 0:00:50.7]} 23. f3 {[%clk 0:00:28.1]} 23...
Rd8+ {[%clk 0:00:50]} 24. Ke1 {[%clk 0:00:28.1]} 24... Be6 {[%clk 0:00:46.5]}
25. Rc1 {[%clk 0:00:24.8]} 25... c5 {[%clk 0:00:42.8]} 26. Bc3 {[%clk
0:00:25.3]} 26... Bb3 {[%clk 0:00:39.8]} 27. Kf2 {[%clk 0:00:24.5]} 27... f5
{[%clk 0:00:37.1]} 28. Rg1 {[%clk 0:00:22.5]} 28... Rd1 {[%clk 0:00:36.9]} 29.
Rg2 {[%clk 0:00:22.3]} 29... Ke6 {[%clk 0:00:31.5]} 30. Ke3 {[%clk 0:00:20.9]}
30... Rd5 {[%clk 0:00:25]} 31. g4 {[%clk 0:00:20.3]} 31... fxg4 {[%clk
0:00:25.1]} 32. Rxg4 {[%clk 0:00:19.3]} 32... Rh5 {[%clk 0:00:23.9]} 33. Rg2
{[%clk 0:00:18.8]} 33... Bd1 {[%clk 0:00:18.1]} 34. Kf2 {[%clk 0:00:18.4]} 34...
Rh3 {[%clk 0:00:15.3]} 35. Ke1 {[%clk 0:00:16.8]} 35... Bb3 {[%clk 0:00:13.7]}
36. Kf2 {[%clk 0:00:17]} 36... Bd1 {[%clk 0:00:12.7]} 37. Rg1 {[%clk 0:00:15.7]}
37... Bb3 {[%clk 0:00:05.5]} 38. Kg2 {[%clk 0:00:15.8]} 38... Rh5 {[%clk
0:00:03.3]} 39. Re1 {[%clk 0:00:15.6]} 39... Rd5 {[%clk 0:00:02.9]} 40. e4
{[%clk 0:00:14.8]} 40... Rd3 {[%clk 0:00:03.5]} 41. Re2 {[%clk 0:00:14]} 41...
Bd1 {[%clk 0:00:02.7]} 42. Rf2 {[%clk 0:00:13.9]} 42... Bb3 {[%clk 0:00:02.9]}
43. Rd2 {[%clk 0:00:13.1]} 43... Rxd2+ {[%clk 0:00:02.3]} 44. Bxd2 {[%clk
0:00:14]} 1-0

[Event "*** Titled Tuesday Blitz"]
[Site "Chess.com"]
[Date "2020.11.24"]
[Round "5"]
[White "Eternauta2400"]
[Black "DenLaz"]
[Result "0-1"]
[WhiteElo "2449"]
[BlackElo "2755"]
[TimeControl "180+1"]
[EndTime "11:12:13 PST"]
[Termination "DenLaz won on time"]

1. d4 {[%clk 0:03:00.3]} 1... d5 {[%clk 0:02:57.5]} 2. c4 {[%clk 0:02:59.8]}
2... e6 {[%clk 0:02:57.4]} 3. Nf3 {[%clk 0:02:59]} 3... a6 {[%clk 0:02:55.6]} 4.
cxd5 {[%clk 0:02:52.9]} 4... exd5 {[%clk 0:02:54.1]} 5. g3 {[%clk 0:02:53.8]}
5... Nf6 {[%clk 0:02:51]} 6. Bg2 {[%clk 0:02:54.3]} 6... Be7 {[%clk 0:02:47.4]}
7. O-O {[%clk 0:02:54.8]} 7... O-O {[%clk 0:02:46.3]} 8. Nc3 {[%clk 0:02:55.1]}
8... c6 {[%clk 0:02:32.8]} 9. Bf4 {[%clk 0:02:53.6]} 9... Re8 {[%clk 0:02:28.8]}
10. Ne5 {[%clk 0:02:47.2]} 10... Bf5 {[%clk 0:02:24.1]} 11. Qb3 {[%clk
0:02:35.3]} 11... Ra7 {[%clk 0:02:23.3]} 12. a4 {[%clk 0:02:28.1]} 12... Nbd7
{[%clk 0:02:22.1]} 13. a5 {[%clk 0:02:26.8]} 13... Nxe5 {[%clk 0:02:15.1]} 14.
dxe5 {[%clk 0:02:27.7]} 14... Nd7 {[%clk 0:02:14.2]} 15. Be3 {[%clk 0:02:22.5]}
15... Nc5 {[%clk 0:02:07.3]} 16. Bxc5 {[%clk 0:02:19.9]} 16... Bxc5 {[%clk
0:02:08.2]} 17. Rfd1 {[%clk 0:02:01.5]} 17... Be6 {[%clk 0:01:42.3]} 18. Na4
{[%clk 0:01:54.8]} 18... Bf8 {[%clk 0:01:38.6]} 19. Nb6 {[%clk 0:01:52.9]} 19...
Bc5 {[%clk 0:01:29.8]} 20. Rac1 {[%clk 0:01:33.3]} 20... Bxb6 {[%clk 0:01:27.3]}
21. axb6 {[%clk 0:01:31.9]} 21... Ra8 {[%clk 0:01:26.9]} 22. e4 {[%clk
0:01:31.2]} 22... dxe4 {[%clk 0:01:22.2]} 23. Rxd8 {[%clk 0:01:14.6]} 23... Bxb3
{[%clk 0:01:20.9]} 24. Rxa8 {[%clk 0:01:11.9]} 24... Rxa8 {[%clk 0:01:21.8]} 25.
Bxe4 {[%clk 0:01:12.3]} 25... h5 {[%clk 0:01:10.4]} 26. f4 {[%clk 0:00:59.4]}
26... g6 {[%clk 0:01:09.4]} 27. Rc3 {[%clk 0:00:52.3]} 27... Be6 {[%clk
0:01:08.3]} 28. Rd3 {[%clk 0:00:51.7]} 28... a5 {[%clk 0:01:00.9]} 29. Kf2
{[%clk 0:00:50.2]} 29... Ra6 {[%clk 0:00:58.2]} 30. Ra3 {[%clk 0:00:41.1]} 30...
Rxb6 {[%clk 0:00:57.4]} 31. Rxa5 {[%clk 0:00:40.4]} 31... Rxb2+ {[%clk
0:00:57.2]} 32. Kg1 {[%clk 0:00:41.3]} 32... Kg7 {[%clk 0:00:51.7]} 33. Ra7
{[%clk 0:00:37.6]} 33... Rb4 {[%clk 0:00:49.5]} 34. Bd3 {[%clk 0:00:33.6]} 34...
c5 {[%clk 0:00:48.6]} 35. Kf2 {[%clk 0:00:30.9]} 35... c4 {[%clk 0:00:48.1]} 36.
Be4 {[%clk 0:00:30.3]} 36... b5 {[%clk 0:00:48.2]} 37. Ke3 {[%clk 0:00:27]}
37... c3 {[%clk 0:00:39.5]} 38. Rc7 {[%clk 0:00:07.7]} 38... Rb3 {[%clk
0:00:24.3]} 39. Bc2 {[%clk 0:00:06.6]} 39... Ra3 {[%clk 0:00:23.6]} 40. Kd4
{[%clk 0:00:06.2]} 40... b4 {[%clk 0:00:23.1]} 41. Bd3 {[%clk 0:00:04.5]} 41...
Ra8 {[%clk 0:00:16.6]} 42. Bc4 {[%clk 0:00:04.1]} 42... Rd8+ {[%clk 0:00:14.4]}
0-1

[Event "*** Titled Tuesday Blitz"]
[Site "Chess.com"]
[Date "2020.11.24"]
[Round "5"]
[White "Harry_Rakkel"]
[Black "Satscho"]
[Result "0-1"]
[WhiteElo "2485"]
[BlackElo "2339"]
[TimeControl "180+1"]
[EndTime "11:12:13 PST"]
[Termination "Satscho won on time"]

1. c4 {[%clk 0:03:00.9]} 1... Nf6 {[%clk 0:02:59.6]} 2. Nc3 {[%clk 0:02:59.3]}
2... g6 {[%clk 0:02:59.4]} 3. e4 {[%clk 0:02:57.6]} 3... d6 {[%clk 0:02:59.6]}
4. d4 {[%clk 0:02:57.2]} 4... Bg7 {[%clk 0:03:00.2]} 5. f3 {[%clk 0:02:57.1]}
5... O-O {[%clk 0:03:00.2]} 6. Nge2 {[%clk 0:02:57.4]} 6... c5 {[%clk
0:03:00.6]} 7. d5 {[%clk 0:02:57.1]} 7... e6 {[%clk 0:02:57.6]} 8. Ng3 {[%clk
0:02:56.3]} 8... exd5 {[%clk 0:02:56]} 9. cxd5 {[%clk 0:02:57.2]} 9... a6 {[%clk
0:02:46.1]} 10. a4 {[%clk 0:02:56.3]} 10... Re8 {[%clk 0:02:46]} 11. Be2 {[%clk
0:02:55.9]} 11... h5 {[%clk 0:02:36.2]} 12. Bg5 {[%clk 0:02:54.5]} 12... Qa5
{[%clk 0:02:36.5]} 13. Qd2 {[%clk 0:02:51.4]} 13... Nh7 {[%clk 0:02:30.3]} 14.
Bf4 {[%clk 0:02:48.9]} 14... h4 {[%clk 0:02:23.7]} 15. Nf1 {[%clk 0:02:48.7]}
15... Qc7 {[%clk 0:02:16.4]} 16. g4 {[%clk 0:02:25.9]} 16... Nd7 {[%clk
0:02:02.1]} 17. Bh6 {[%clk 0:02:18]} 17... Bd4 {[%clk 0:01:51.3]} 18. Ne3 {[%clk
0:02:10]} 18... Ne5 {[%clk 0:01:29.9]} 19. h3 {[%clk 0:01:54.1]} 19... g5 {[%clk
0:01:18]} 20. f4 {[%clk 0:01:39.3]} 20... gxf4 {[%clk 0:01:00.2]} 21. Bxf4
{[%clk 0:01:40.2]} 21... Ng6 {[%clk 0:01:00.5]} 22. Bh2 {[%clk 0:01:38.1]} 22...
Qe7 {[%clk 0:00:40.1]} 23. Nf5 {[%clk 0:01:17.7]} 23... Bxf5 {[%clk 0:00:36]}
24. gxf5 {[%clk 0:01:18.6]} 24... Ne5 {[%clk 0:00:30.1]} 25. O-O-O {[%clk
0:01:00.7]} 25... b5 {[%clk 0:00:19.6]} 26. Qh6 {[%clk 0:00:56.4]} 26... Kh8
{[%clk 0:00:18]} 27. Rdf1 {[%clk 0:00:36.7]} 27... f6 {[%clk 0:00:15.1]} 28. Bh5
{[%clk 0:00:26.1]} 28... Rg8 {[%clk 0:00:11.5]} 29. Bg6 {[%clk 0:00:24.5]} 29...
Rg7 {[%clk 0:00:11.6]} 30. Ne2 {[%clk 0:00:18.8]} 30... bxa4 {[%clk 0:00:11.2]}
31. Nf4 {[%clk 0:00:18]} 31... a3 {[%clk 0:00:08.8]} 32. Ne6 {[%clk 0:00:11.3]}
32... Rag8 {[%clk 0:00:05]} 33. Nxd4 {[%clk 0:00:09]} 33... cxd4 {[%clk
0:00:04.9]} 34. bxa3 {[%clk 0:00:07.2]} 34... Qc7+ {[%clk 0:00:05.1]} 35. Kd1
{[%clk 0:00:06.9]} 35... Qc3 {[%clk 0:00:04]} 36. Rf2 {[%clk 0:00:06.4]} 36...
Qd3+ {[%clk 0:00:03.4]} 37. Qd2 {[%clk 0:00:03.3]} 37... Qb3+ {[%clk 0:00:03.7]}
38. Qc2 {[%clk 0:00:02.4]} 38... Qxa3 {[%clk 0:00:03.7]} 0-1

[Event "*** Titled Tuesday Blitz"]
[Site "Chess.com"]
[Date "2020.11.24"]
[Round "5"]
[White "kinga2008"]
[Black "AniJak"]
[Result "0-1"]
[WhiteElo "2175"]
[BlackElo "2340"]
[TimeControl "180+1"]
[EndTime "11:12:13 PST"]
[Termination "AniJak won by resignation"]

1. e4 {[%clk 0:03:00.9]} 1... c5 {[%clk 0:02:58.8]} 2. Nf3 {[%clk 0:03:01]} 2...
e6 {[%clk 0:02:58.5]} 3. c3 {[%clk 0:03:01.9]} 3... Nc6 {[%clk 0:02:56.1]} 4.
Bd3 {[%clk 0:02:59.8]} 4... d5 {[%clk 0:02:55.5]} 5. e5 {[%clk 0:02:58.1]} 5...
d4 {[%clk 0:02:55.1]} 6. Bc2 {[%clk 0:02:57.1]} 6... d3 {[%clk 0:02:39.9]} 7.
Ba4 {[%clk 0:02:55.6]} 7... Bd7 {[%clk 0:02:40.1]} 8. O-O {[%clk 0:02:42.6]}
8... a6 {[%clk 0:02:40.2]} 9. b4 {[%clk 0:02:40.4]} 9... b5 {[%clk 0:02:39.6]}
10. bxc5 {[%clk 0:02:04.6]} 10... bxa4 {[%clk 0:02:38.5]} 11. Qxa4 {[%clk
0:02:03.4]} 11... Nxe5 {[%clk 0:02:30.8]} 12. Qf4 {[%clk 0:01:58.4]} 12... Nxf3+
{[%clk 0:02:30.5]} 13. Qxf3 {[%clk 0:01:59.3]} 13... Bxc5 {[%clk 0:02:28.9]} 14.
Qxd3 {[%clk 0:01:58.1]} 14... Bb5 {[%clk 0:02:24.7]} 15. Qxd8+ {[%clk
0:01:51.5]} 15... Rxd8 {[%clk 0:02:25.6]} 16. Rd1 {[%clk 0:01:49.1]} 16... Bd3
{[%clk 0:02:20.9]} 17. Ba3 {[%clk 0:01:42.2]} 17... Bxa3 {[%clk 0:02:16.3]} 18.
Nxa3 {[%clk 0:01:33.6]} 18... Nf6 {[%clk 0:02:16.2]} 19. f3 {[%clk 0:01:30.2]}
19... O-O {[%clk 0:02:14.1]} 20. Kf2 {[%clk 0:01:27.6]} 20... Rb8 {[%clk
0:02:09.7]} 21. Ke3 {[%clk 0:01:20.7]} 21... Rfd8 {[%clk 0:02:09.1]} 22. g4
{[%clk 0:01:16.3]} 22... h5 {[%clk 0:02:07.8]} 23. g5 {[%clk 0:01:15.9]} 23...
Ne8 {[%clk 0:02:06.7]} 24. c4 {[%clk 0:01:09.1]} 24... g6 {[%clk 0:01:54.7]} 25.
Rdc1 {[%clk 0:01:06.3]} 25... Ng7 {[%clk 0:01:53.5]} 26. Rc3 {[%clk 0:01:02.8]}
26... Nf5+ {[%clk 0:01:53.5]} 27. Kf4 {[%clk 0:01:01.6]} 27... Rbc8 {[%clk
0:01:34.6]} 28. c5 {[%clk 0:00:58.9]} 28... e5+ {[%clk 0:01:08.8]} 29. Kxe5
{[%clk 0:00:55.5]} 29... Re8+ {[%clk 0:01:08.1]} 30. Kd5 {[%clk 0:00:53.1]}
30... Red8+ {[%clk 0:00:44.4]} 31. Ke5 {[%clk 0:00:38.8]} 31... Ne7 {[%clk
0:00:44.2]} 32. Rac1 {[%clk 0:00:23]} 32... Rd5+ {[%clk 0:00:41.7]} 33. Kf4
{[%clk 0:00:20.1]} 33... Rf5+ {[%clk 0:00:41.8]} 34. Ke3 {[%clk 0:00:13.9]}
34... Nd5+ {[%clk 0:00:41.4]} 35. Kxd3 {[%clk 0:00:12.2]} 35... Nxc3 {[%clk
0:00:42.2]} 36. dxc3 {[%clk 0:00:10.7]} 36... Rfxc5 {[%clk 0:00:43.1]} 37. c4
{[%clk 0:00:10.1]} 37... Rxg5 {[%clk 0:00:42.9]} 38. Kd4 {[%clk 0:00:09.1]}
38... Rf5 {[%clk 0:00:42.4]} 39. Rc3 {[%clk 0:00:07.7]} 39... g5 {[%clk
0:00:40.5]} 40. c5 {[%clk 0:00:07]} 40... g4 {[%clk 0:00:40.1]} 41. fxg4 {[%clk
0:00:05.5]} 41... hxg4 {[%clk 0:00:41]} 42. Rg3 {[%clk 0:00:05]} 42... Rfxc5
{[%clk 0:00:37.4]} 43. Rxg4+ {[%clk 0:00:04.5]} 43... Kf8 {[%clk 0:00:38]} 44.
Rh4 {[%clk 0:00:01.8]} 44... Kg7 {[%clk 0:00:37.3]} 45. Rg4+ {[%clk 0:00:01.8]}
45... Kf6 {[%clk 0:00:37.6]} 46. Rf4+ {[%clk 0:00:02.4]} 46... Kg6 {[%clk
0:00:37.1]} 47. Re4 {[%clk 0:00:03]} 47... f5 {[%clk 0:00:36.7]} 48. Re3 {[%clk
0:00:03.1]} 48... R5c6 {[%clk 0:00:35.8]} 49. Rg3+ {[%clk 0:00:03.3]} 49... Kf6
{[%clk 0:00:35.6]} 50. Kd3 {[%clk 0:00:02.4]} 50... f4 {[%clk 0:00:35.7]} 51.
Rf3 {[%clk 0:00:02.3]} 51... Rc3+ {[%clk 0:00:35.7]} 52. Ke4 {[%clk 0:00:02.9]}
52... Rxf3 {[%clk 0:00:36]} 53. Kxf3 {[%clk 0:00:03.5]} 53... Rc3+ {[%clk
0:00:36.4]} 0-1

[Event "*** Titled Tuesday Blitz"]
[Site "Chess.com"]
[Date "2020.11.24"]
[Round "5"]
[White "Nadeev_Sergey"]
[Black "Limelight2727"]
[Result "1-0"]
[WhiteElo "2464"]
[BlackElo "1937"]
[TimeControl "180+1"]
[EndTime "11:12:14 PST"]
[Termination "Nadeev_Sergey won by checkmate"]

1. d4 {[%clk 0:03:00.9]} 1... Nf6 {[%clk 0:02:59.8]} 2. Bf4 {[%clk 0:03:00.6]}
2... d5 {[%clk 0:02:57.3]} 3. e3 {[%clk 0:03:00]} 3... c5 {[%clk 0:02:57.7]} 4.
c3 {[%clk 0:02:59.7]} 4... Nc6 {[%clk 0:02:58]} 5. Nd2 {[%clk 0:02:57.6]} 5...
e6 {[%clk 0:02:50.3]} 6. Ngf3 {[%clk 0:02:57]} 6... Bd6 {[%clk 0:02:48.6]} 7.
Bxd6 {[%clk 0:02:56.5]} 7... Qxd6 {[%clk 0:02:48.7]} 8. Bd3 {[%clk 0:02:55.9]}
8... b6 {[%clk 0:02:46.6]} 9. O-O {[%clk 0:02:55.4]} 9... O-O {[%clk 0:02:46]}
10. Re1 {[%clk 0:02:54.7]} 10... Rd8 {[%clk 0:02:43.7]} 11. e4 {[%clk
0:02:52.5]} 11... dxe4 {[%clk 0:02:43.9]} 12. Nxe4 {[%clk 0:02:51.6]} 12... Nxe4
{[%clk 0:02:44.5]} 13. Bxe4 {[%clk 0:02:52.2]} 13... cxd4 {[%clk 0:02:24.5]} 14.
Nxd4 {[%clk 0:02:48.3]} 14... Bb7 {[%clk 0:02:21.3]} 15. Nxc6 {[%clk 0:02:43.7]}
15... Bxc6 {[%clk 0:02:20.7]} 16. Qxd6 {[%clk 0:02:44]} 16... Rxd6 {[%clk
0:02:21.5]} 17. Bxc6 {[%clk 0:02:44]} 17... Rxc6 {[%clk 0:02:22.4]} 18. Rad1
{[%clk 0:02:44.1]} 18... a5 {[%clk 0:02:22.1]} 19. Rd7 {[%clk 0:02:42.7]} 19...
a4 {[%clk 0:02:21.5]} 20. Red1 {[%clk 0:02:42.3]} 20... h6 {[%clk 0:02:20.1]}
21. R1d6 {[%clk 0:02:21.3]} 21... Rxd6 {[%clk 0:01:33.5]} 22. Rxd6 {[%clk
0:02:21.3]} 22... a3 {[%clk 0:01:34.4]} 23. b3 {[%clk 0:02:20.2]} 23... Rc8
{[%clk 0:01:25.7]} 24. Rd3 {[%clk 0:02:17.4]} 24... b5 {[%clk 0:01:21.7]} 25.
Kf1 {[%clk 0:02:16.8]} 25... e5 {[%clk 0:01:20]} 26. Ke2 {[%clk 0:02:13.8]}
26... e4 {[%clk 0:01:20.3]} 27. Re3 {[%clk 0:02:13.1]} 27... f5 {[%clk
0:01:20.4]} 28. Kd2 {[%clk 0:02:13.4]} 28... Kf7 {[%clk 0:01:15.9]} 29. f3
{[%clk 0:02:12.6]} 29... exf3 {[%clk 0:01:14.4]} 30. Rxf3 {[%clk 0:02:12.6]}
30... Kf6 {[%clk 0:01:13.8]} 31. b4 {[%clk 0:02:11.8]} 31... Rc4 {[%clk
0:01:12.5]} 32. Kc2 {[%clk 0:02:07.8]} 32... g5 {[%clk 0:01:10.5]} 33. Kb3
{[%clk 0:02:07.7]} 33... g4 {[%clk 0:01:11]} 34. Rd3 {[%clk 0:02:05.8]} 34... f4
{[%clk 0:01:10.4]} 35. Kxa3 {[%clk 0:02:04.4]} 35... Kf5 {[%clk 0:01:10.1]} 36.
Kb3 {[%clk 0:02:04.3]} 36... Ke4 {[%clk 0:01:09.7]} 37. Rd8 {[%clk 0:02:02]}
37... f3 {[%clk 0:01:09.3]} 38. gxf3+ {[%clk 0:01:47.9]} 38... gxf3 {[%clk
0:01:10.2]} 39. a4 {[%clk 0:01:44.7]} 39... Ke3 {[%clk 0:00:54.2]} 40. axb5
{[%clk 0:01:44.4]} 40... f2 {[%clk 0:00:54.1]} 41. Rd1 {[%clk 0:01:42.7]} 41...
Ke2 {[%clk 0:00:48.3]} 42. Rb1 {[%clk 0:01:35.2]} 42... Rc8 {[%clk 0:00:14.4]}
43. Rb2+ {[%clk 0:00:51]} 43... Ke1 {[%clk 0:00:13.8]} 44. c4 {[%clk 0:00:47.7]}
44... f1=Q {[%clk 0:00:13.6]} 45. Rb1+ {[%clk 0:00:47.7]} 45... Ke2 {[%clk
0:00:14.2]} 46. Rxf1 {[%clk 0:00:48.1]} 46... Kxf1 {[%clk 0:00:15.1]} 47. c5
{[%clk 0:00:47.6]} 47... h5 {[%clk 0:00:16]} 48. b6 {[%clk 0:00:47.6]} 48... h4
{[%clk 0:00:16.9]} 49. b7 {[%clk 0:00:47.8]} 49... Rb8 {[%clk 0:00:17.5]} 50. c6
{[%clk 0:00:48.2]} 50... h3 {[%clk 0:00:16.9]} 51. c7 {[%clk 0:00:48.1]} 51...
Rxb7 {[%clk 0:00:17.5]} 52. c8=Q {[%clk 0:00:48.3]} 52... Rh7 {[%clk 0:00:16.9]}
53. Qf5+ {[%clk 0:00:47.8]} 53... Kg2 {[%clk 0:00:17.8]} 54. Qxh7 {[%clk
0:00:47.9]} 54... Kxh2 {[%clk 0:00:18.7]} 55. b5 {[%clk 0:00:45.4]} 55... Kg2
{[%clk 0:00:19.6]} 56. b6 {[%clk 0:00:45.9]} 56... h2 {[%clk 0:00:20.5]} 57.
Qe4+ {[%clk 0:00:45.5]} 57... Kg1 {[%clk 0:00:20.5]} 58. Qg4+ {[%clk 0:00:45.4]}
58... Kh1 {[%clk 0:00:21.1]} 59. Qf3+ {[%clk 0:00:42.4]} 59... Kg1 {[%clk
0:00:22]} 60. b7 {[%clk 0:00:42.1]} 60... h1=Q {[%clk 0:00:22.9]} 61. Qxh1+
{[%clk 0:00:41.7]} 61... Kxh1 {[%clk 0:00:23.8]} 62. b8=Q {[%clk 0:00:41.9]}
62... Kg2 {[%clk 0:00:24.7]} 63. Qf8 {[%clk 0:00:41.7]} 63... Kg3 {[%clk
0:00:24.5]} 64. Kc3 {[%clk 0:00:42.3]} 64... Kg4 {[%clk 0:00:25.4]} 65. Kd3
{[%clk 0:00:43.2]} 65... Kg5 {[%clk 0:00:25.8]} 66. Ke3 {[%clk 0:00:43.9]} 66...
Kg6 {[%clk 0:00:26.5]} 67. Ke4 {[%clk 0:00:44.1]} 67... Kh7 {[%clk 0:00:27.4]}
68. Qf7+ {[%clk 0:00:43.4]} 68... Kh6 {[%clk 0:00:27.7]} 69. Qg8 {[%clk
0:00:43.3]} 69... Kh5 {[%clk 0:00:27.7]} 70. Kf5 {[%clk 0:00:44]} 70... Kh4
{[%clk 0:00:28.6]} 71. Qg4# {[%clk 0:00:44.2]} 1-0